[Event "Early-Titled-Tuesday-Blitz-March-12-2024"]
[Site "Chess.com"]
[Date "2024.03.12"]
[Round "6"]
[White "ExchangeAB"]
[Black "javierfreilemartin"]
[Result "1-0"]
[WhiteElo "2512"]
[BlackElo "2245"]
[TimeControl "180+1"]
[EndTime "9:05:29 PDT"]
[Termination "ExchangeAB won by resignation"]

1. d4 {[%clk 0:03:00.9]} 1... Nf6 {[%clk 0:02:59.4]} 2. Nf3 {[%clk 0:03:01]}
2... g6 {[%clk 0:02:59.3]} 3. c3 {[%clk 0:03:01.4]} 3... Bg7 {[%clk 0:02:59.1]}
4. h3 {[%clk 0:03:02]} 4... d6 {[%clk 0:02:59.5]} 5. Bf4 {[%clk 0:03:01.6]} 5...
O-O {[%clk 0:02:59.9]} 6. e3 {[%clk 0:03:01.9]} 6... a6 {[%clk 0:02:58.9]} 7.
Be2 {[%clk 0:03:02.4]} 7... b5 {[%clk 0:02:59.1]} 8. O-O {[%clk 0:03:02.6]} 8...
Bb7 {[%clk 0:02:59.5]} 9. a4 {[%clk 0:03:01.5]} 9... c6 {[%clk 0:02:57.2]} 10.
axb5 {[%clk 0:02:59.5]} 10... cxb5 {[%clk 0:02:57.1]} 11. Nfd2 {[%clk 0:02:53]}
11... Nbd7 {[%clk 0:02:56.2]} 12. Bf3 {[%clk 0:02:53.1]} 12... Qb6 {[%clk
0:02:54.5]} 13. Bxb7 {[%clk 0:02:51.6]} 13... Qxb7 {[%clk 0:02:54.5]} 14. Qf3
{[%clk 0:02:52.2]} 14... d5 {[%clk 0:02:52.8]} 15. Qd1 {[%clk 0:02:48.5]} 15...
a5 {[%clk 0:02:52.1]} 16. Nf3 {[%clk 0:02:47.9]} 16... Rfc8 {[%clk 0:02:48.3]}
17. Nbd2 {[%clk 0:02:47.1]} 17... a4 {[%clk 0:02:46.6]} 18. Ne5 {[%clk
0:02:45.9]} 18... Nb6 {[%clk 0:02:45.6]} 19. Nd3 {[%clk 0:02:26.8]} 19... Nfd7
{[%clk 0:02:42.5]} 20. Nf3 {[%clk 0:02:25]} 20... Nc4 {[%clk 0:02:41.9]} 21. Qe2
{[%clk 0:02:22.9]} 21... a3 {[%clk 0:02:37.2]} 22. b3 {[%clk 0:02:12.3]} 22...
Ncb6 {[%clk 0:02:32.2]} 23. Rfc1 {[%clk 0:02:08.4]} 23... f6 {[%clk 0:02:28.5]}
24. Qd2 {[%clk 0:01:52.7]} 24... h5 {[%clk 0:02:08.7]} 25. Bg3 {[%clk
0:01:50.7]} 25... Bh6 {[%clk 0:02:01.6]} 26. Nfe1 {[%clk 0:01:49.2]} 26... Kf7
{[%clk 0:01:54.6]} 27. Nc2 {[%clk 0:01:48.7]} 27... Ra6 {[%clk 0:01:36.6]} 28.
Rxa3 {[%clk 0:01:43.2]} 28... Rca8 {[%clk 0:01:33]} 29. Rca1 {[%clk 0:01:42]}
29... Rxa3 {[%clk 0:01:28.4]} 30. Rxa3 {[%clk 0:01:42.9]} 30... Rxa3 {[%clk
0:01:27.7]} 31. Nxa3 {[%clk 0:01:43.8]} 31... Qa6 {[%clk 0:01:27.1]} 32. Qb2
{[%clk 0:01:41.8]} 32... g5 {[%clk 0:01:02.2]} 33. Nb4 {[%clk 0:01:41.2]} 33...
Qb7 {[%clk 0:00:55.6]} 34. Nxb5 {[%clk 0:01:37.5]} 34... h4 {[%clk 0:00:51.9]}
35. Bh2 {[%clk 0:01:37]} 35... f5 {[%clk 0:00:40.7]} 36. Nd3 {[%clk 0:01:31.8]}
36... g4 {[%clk 0:00:39.4]} 37. Bf4 {[%clk 0:01:26.1]} 37... Bg7 {[%clk
0:00:36.8]} 38. Qa2 {[%clk 0:01:19.7]} 38... gxh3 {[%clk 0:00:34.4]} 39. gxh3
{[%clk 0:01:20.6]} 39... Qc6 {[%clk 0:00:33.6]} 40. c4 {[%clk 0:01:17.9]} 40...
dxc4 {[%clk 0:00:30.4]} 41. bxc4 {[%clk 0:01:18.8]} 41... Qf3 {[%clk 0:00:28.8]}
42. c5+ {[%clk 0:01:05.8]} 42... e6 {[%clk 0:00:25]} 43. cxb6 {[%clk 0:01:02.1]}
43... Qd1+ {[%clk 0:00:23.7]} 44. Kg2 {[%clk 0:00:54.9]} 44... Qxd3 {[%clk
0:00:22.9]} 45. Nd6+ {[%clk 0:00:55.2]} 45... Kg6 {[%clk 0:00:21.2]} 46. Qxe6+
{[%clk 0:00:54.5]} 46... Nf6 {[%clk 0:00:20.5]} 47. Qxf5+ {[%clk 0:00:48.2]}
47... Qxf5 {[%clk 0:00:19.6]} 48. Nxf5 {[%clk 0:00:49.1]} 48... Kxf5 {[%clk
0:00:19.2]} 49. b7 {[%clk 0:00:49.8]} 49... Nd7 {[%clk 0:00:18.8]} 50. b8=Q
{[%clk 0:00:50]} 50... Nxb8 {[%clk 0:00:18]} 51. Bxb8 {[%clk 0:00:50.9]} 51...
Ke4 {[%clk 0:00:17.4]} 52. Be5 {[%clk 0:00:49.4]} 1-0

[Event "Early-Titled-Tuesday-Blitz-March-12-2024"]
[Site "Chess.com"]
[Date "2024.03.12"]
[Round "6"]
[White "Triumphmate"]
[Black "Mikhail_Golubev"]
[Result "0-1"]
[WhiteElo "2520"]
[BlackElo "2705"]
[TimeControl "180+1"]
[EndTime "9:05:33 PDT"]
[Termination "Mikhail_Golubev won by resignation"]

1. e4 {[%clk 0:01:28.7]} 1... c5 {[%clk 0:02:59.1]} 2. Nf3 {[%clk 0:01:28.7]}
2... d6 {[%clk 0:02:59.3]} 3. d4 {[%clk 0:01:28]} 3... Nf6 {[%clk 0:02:59.8]} 4.
Nc3 {[%clk 0:01:27.9]} 4... cxd4 {[%clk 0:03:00.1]} 5. Nxd4 {[%clk 0:01:28.8]}
5... g6 {[%clk 0:03:00.8]} 6. f4 {[%clk 0:01:29.2]} 6... Nc6 {[%clk 0:02:58.4]}
7. Nf3 {[%clk 0:01:29.7]} 7... Bg4 {[%clk 0:02:48.7]} 8. Bd3 {[%clk 0:01:29.8]}
8... Qb6 {[%clk 0:02:43.3]} 9. Qe2 {[%clk 0:01:28.3]} 9... Nd4 {[%clk
0:02:35.2]} 10. Qf2 {[%clk 0:01:20.4]} 10... Nxf3+ {[%clk 0:02:28.2]} 11. gxf3
{[%clk 0:01:21.3]} 11... Qxf2+ {[%clk 0:02:28.2]} 12. Kxf2 {[%clk 0:01:20.3]}
12... Bd7 {[%clk 0:02:26.1]} 13. Be3 {[%clk 0:01:16.7]} 13... Bg7 {[%clk
0:02:24.3]} 14. Rhg1 {[%clk 0:01:11]} 14... O-O {[%clk 0:02:21.8]} 15. Ne2
{[%clk 0:01:06.9]} 15... Nh5 {[%clk 0:02:12.5]} 16. c3 {[%clk 0:01:06.6]} 16...
f5 {[%clk 0:02:08.2]} 17. Ke1 {[%clk 0:00:58.8]} 17... fxe4 {[%clk 0:01:59.1]}
18. fxe4 {[%clk 0:00:59.7]} 18... Bh6 {[%clk 0:01:57.6]} 19. Kd2 {[%clk
0:00:22.1]} 19... Nxf4 {[%clk 0:01:46.4]} 20. Raf1 {[%clk 0:00:21.1]} 20... e5
{[%clk 0:01:42.7]} 21. Bxf4 {[%clk 0:00:18.2]} 21... Bxf4+ {[%clk 0:01:39]} 22.
Nxf4 {[%clk 0:00:18.3]} 22... Rxf4 {[%clk 0:01:37.4]} 23. Rxf4 {[%clk
0:00:18.5]} 23... exf4 {[%clk 0:01:38]} 24. Ke2 {[%clk 0:00:19.2]} 24... Rf8
{[%clk 0:01:36.7]} 25. Bc4+ {[%clk 0:00:15.2]} 25... Kg7 {[%clk 0:01:35.9]} 26.
Kf3 {[%clk 0:00:16.1]} 26... Rf6 {[%clk 0:01:28.5]} 27. Rd1 {[%clk 0:00:16]}
27... g5 {[%clk 0:01:23.4]} 28. e5 {[%clk 0:00:13.9]} 28... Bc6+ {[%clk
0:01:21.1]} 29. Bd5 {[%clk 0:00:14.4]} 29... dxe5 {[%clk 0:01:20.1]} 30. Bxc6
{[%clk 0:00:14.7]} 30... bxc6 {[%clk 0:01:19.6]} 31. Ke4 {[%clk 0:00:15.2]}
31... f3 {[%clk 0:01:15]} 32. Kxe5 {[%clk 0:00:15.1]} 32... f2 {[%clk
0:01:14.2]} 33. Rf1 {[%clk 0:00:15.4]} 33... g4 {[%clk 0:00:59.4]} 34. Ke4
{[%clk 0:00:15.5]} 34... Rf3 {[%clk 0:00:56]} 35. a4 {[%clk 0:00:05.9]} 35... h5
{[%clk 0:00:53.8]} 36. a5 {[%clk 0:00:05.9]} 36... h4 {[%clk 0:00:51.3]} 37. b4
{[%clk 0:00:06.5]} 37... Rf6 {[%clk 0:00:47]} 38. c4 {[%clk 0:00:01.9]} 38... g3
{[%clk 0:00:46.8]} 39. hxg3 {[%clk 0:00:02.8]} 39... hxg3 {[%clk 0:00:46.9]} 40.
Rxf2 {[%clk 0:00:03]} 40... gxf2 {[%clk 0:00:46.5]} 0-1

[Event "Early-Titled-Tuesday-Blitz-March-12-2024"]
[Site "Chess.com"]
[Date "2024.03.12"]
[Round "6"]
[White "el008"]
[Black "VojtechPlat"]
[Result "0-1"]
[WhiteElo "2513"]
[BlackElo "2871"]
[TimeControl "180+1"]
[EndTime "9:05:38 PDT"]
[Termination "VojtechPlat won on time"]

1. Nf3 {[%clk 0:03:00.9]} 1... d6 {[%clk 0:02:59.6]} 2. d4 {[%clk 0:03:01]} 2...
Nf6 {[%clk 0:02:56.6]} 3. g3 {[%clk 0:03:01.1]} 3... Bf5 {[%clk 0:02:57]} 4. c4
{[%clk 0:02:59.9]} 4... c6 {[%clk 0:02:57.3]} 5. Nc3 {[%clk 0:03:00.2]} 5... h6
{[%clk 0:02:57.3]} 6. Bg2 {[%clk 0:03:00.5]} 6... Nbd7 {[%clk 0:02:56.6]} 7. O-O
{[%clk 0:03:00.9]} 7... e5 {[%clk 0:02:56.5]} 8. d5 {[%clk 0:02:42]} 8... cxd5
{[%clk 0:02:52.3]} 9. cxd5 {[%clk 0:02:41.1]} 9... Be7 {[%clk 0:02:51.9]} 10. b3
{[%clk 0:02:33.3]} 10... Ne4 {[%clk 0:02:51.1]} 11. Bb2 {[%clk 0:02:29.4]} 11...
Nxc3 {[%clk 0:02:49.4]} 12. Bxc3 {[%clk 0:02:30.3]} 12... O-O {[%clk 0:02:49]}
13. Rc1 {[%clk 0:02:29.1]} 13... Nc5 {[%clk 0:02:47.9]} 14. Nd2 {[%clk
0:02:28.4]} 14... Rc8 {[%clk 0:02:47]} 15. b4 {[%clk 0:02:28.1]} 15... Nd7
{[%clk 0:02:44.6]} 16. e4 {[%clk 0:02:23.8]} 16... Bh7 {[%clk 0:02:41.8]} 17. f4
{[%clk 0:02:24.1]} 17... exf4 {[%clk 0:02:33.2]} 18. gxf4 {[%clk 0:02:25]} 18...
Qb6+ {[%clk 0:02:32.6]} 19. Kh1 {[%clk 0:02:23.8]} 19... Qe3 {[%clk 0:02:30.1]}
20. Rf3 {[%clk 0:02:23]} 20... Qb6 {[%clk 0:02:28.5]} 21. Rg3 {[%clk 0:02:20.8]}
21... Bf6 {[%clk 0:02:28.4]} 22. Bxf6 {[%clk 0:01:58.8]} 22... Nxf6 {[%clk
0:02:27.6]} 23. e5 {[%clk 0:01:59.4]} 23... Nh5 {[%clk 0:02:25.2]} 24. Rf3
{[%clk 0:01:50.4]} 24... Qd4 {[%clk 0:02:21.9]} 25. Nb3 {[%clk 0:01:34.8]} 25...
Qxb4 {[%clk 0:02:21]} 26. Rxc8 {[%clk 0:01:09.6]} 26... Rxc8 {[%clk 0:02:19.9]}
27. e6 {[%clk 0:01:10.1]} 27... Be4 {[%clk 0:02:16.5]} 28. exf7+ {[%clk
0:01:06.7]} 28... Kf8 {[%clk 0:02:15.4]} 29. Rf1 {[%clk 0:00:46.4]} 29... Nxf4
{[%clk 0:02:14.3]} 30. Bf3 {[%clk 0:00:43.8]} 30... Rc3 {[%clk 0:02:09.1]} 31.
Nd2 {[%clk 0:00:39.2]} 31... Bxf3+ {[%clk 0:01:56.1]} 32. Rxf3 {[%clk
0:00:40.1]} 32... Rxf3 {[%clk 0:01:53.5]} 33. Nxf3 {[%clk 0:00:41]} 33... Qe4
{[%clk 0:01:53]} 34. Kg1 {[%clk 0:00:40.9]} 34... Nxd5 {[%clk 0:01:50.9]} 35.
Kf2 {[%clk 0:00:30]} 35... Qe3+ {[%clk 0:01:50.3]} 36. Kg3 {[%clk 0:00:30.1]}
36... Qf4+ {[%clk 0:01:48.5]} 37. Kf2 {[%clk 0:00:30]} 37... Nf6 {[%clk
0:01:48.8]} 38. Qb3 {[%clk 0:00:26]} 38... Ne4+ {[%clk 0:01:44.1]} 39. Ke2
{[%clk 0:00:26.3]} 39... Nc5 {[%clk 0:01:40.4]} 40. Qb5 {[%clk 0:00:25.6]} 40...
Kxf7 {[%clk 0:01:38]} 41. Nd2 {[%clk 0:00:22.8]} 41... Qxh2+ {[%clk 0:01:36.5]}
42. Kd1 {[%clk 0:00:22.9]} 42... Qh1+ {[%clk 0:01:35.3]} 43. Kc2 {[%clk
0:00:22.2]} 43... Qc6 {[%clk 0:01:35.4]} 44. Qf1+ {[%clk 0:00:21.6]} 44... Kg8
{[%clk 0:01:35.7]} 45. Kd1 {[%clk 0:00:22]} 45... Ne4 {[%clk 0:01:33.4]} 46. Nb3
{[%clk 0:00:18.3]} 46... Qd5+ {[%clk 0:01:30.2]} 47. Kc2 {[%clk 0:00:18.1]}
47... Nf6 {[%clk 0:01:28.7]} 48. Qg1 {[%clk 0:00:15.1]} 48... a5 {[%clk
0:01:27.3]} 49. Qa7 {[%clk 0:00:13.6]} 49... Qc4+ {[%clk 0:01:27]} 50. Kb2
{[%clk 0:00:13.8]} 50... a4 {[%clk 0:01:27]} 51. Nd2 {[%clk 0:00:08.4]} 51...
Qd3 {[%clk 0:01:27]} 52. Nb1 {[%clk 0:00:06.1]} 52... Qb5+ {[%clk 0:01:22.4]}
53. Kc1 {[%clk 0:00:05.4]} 53... h5 {[%clk 0:01:22.1]} 54. Qb8+ {[%clk
0:00:05.7]} 54... Kh7 {[%clk 0:01:22.2]} 55. Qa7 {[%clk 0:00:02.8]} 55... h4
{[%clk 0:01:22]} 56. Qf2 {[%clk 0:00:01.7]} 56... Qg5+ {[%clk 0:01:21.5]} 57.
Kd1 {[%clk 0:00:01.7]} 57... h3 {[%clk 0:01:21.5]} 58. Nd2 {[%clk 0:00:01.7]}
58... Qh5+ {[%clk 0:01:21.3]} 59. Ke1 {[%clk 0:00:01.6]} 59... h2 {[%clk
0:01:21.4]} 0-1

[Event "Early-Titled-Tuesday-Blitz-March-12-2024"]
[Site "Chess.com"]
[Date "2024.03.12"]
[Round "6"]
[White "PepeCuenca"]
[Black "MidnightFox"]
[Result "1-0"]
[WhiteElo "2702"]
[BlackElo "2507"]
[TimeControl "180+1"]
[EndTime "9:05:42 PDT"]
[Termination "PepeCuenca won by resignation"]

1. d4 {[%clk 0:03:00.9]} 1... Nf6 {[%clk 0:02:56.3]} 2. Bf4 {[%clk 0:03:00.3]}
2... g6 {[%clk 0:02:56.4]} 3. Nc3 {[%clk 0:03:00.5]} 3... Bg7 {[%clk 0:02:56.8]}
4. e4 {[%clk 0:03:00.8]} 4... d6 {[%clk 0:02:56.1]} 5. Qd2 {[%clk 0:03:01.4]}
5... O-O {[%clk 0:02:56.1]} 6. Bh6 {[%clk 0:03:01.2]} 6... e5 {[%clk 0:02:53.5]}
7. Bxg7 {[%clk 0:02:50.1]} 7... Kxg7 {[%clk 0:02:54.4]} 8. O-O-O {[%clk
0:02:48.9]} 8... exd4 {[%clk 0:02:53.6]} 9. Qxd4 {[%clk 0:02:49.8]} 9... Nc6
{[%clk 0:02:53]} 10. Qd2 {[%clk 0:02:48.8]} 10... a6 {[%clk 0:02:46.5]} 11. f3
{[%clk 0:02:45.9]} 11... b5 {[%clk 0:02:45.8]} 12. Kb1 {[%clk 0:02:45]} 12... b4
{[%clk 0:02:45.4]} 13. Nce2 {[%clk 0:02:44.8]} 13... a5 {[%clk 0:02:43.8]} 14.
Nf4 {[%clk 0:02:41.6]} 14... Be6 {[%clk 0:02:37.2]} 15. g4 {[%clk 0:02:29.7]}
15... a4 {[%clk 0:02:34.1]} 16. h4 {[%clk 0:02:15.4]} 16... b3 {[%clk
0:02:27.2]} 17. cxb3 {[%clk 0:02:15.6]} 17... axb3 {[%clk 0:02:26.4]} 18. a3
{[%clk 0:02:16]} 18... Ra4 {[%clk 0:02:17.1]} 19. g5 {[%clk 0:01:41.3]} 19...
Nd7 {[%clk 0:02:14.1]} 20. Bb5 {[%clk 0:01:40.5]} 20... Qa8 {[%clk 0:02:01.5]}
21. Bxa4 {[%clk 0:01:23]} 21... Qxa4 {[%clk 0:01:59.9]} 22. Nge2 {[%clk
0:01:19.6]} 22... Nde5 {[%clk 0:01:50.3]} 23. Qc3 {[%clk 0:01:14.2]} 23... Rb8
{[%clk 0:01:28.6]} 24. Nd4 {[%clk 0:01:07.3]} 24... Rb6 {[%clk 0:01:16.7]} 25.
Nfxe6+ {[%clk 0:01:03.6]} 25... fxe6 {[%clk 0:01:16.5]} 26. Nxe6+ {[%clk
0:01:04.3]} 26... Kf7 {[%clk 0:01:14.9]} 27. Nxc7 {[%clk 0:00:57.6]} 27... Ne7
{[%clk 0:00:57.6]} 28. Nd5 {[%clk 0:00:46.9]} 28... Rc6 {[%clk 0:00:50.7]} 29.
Qb4 {[%clk 0:00:47]} 29... Qa6 {[%clk 0:00:39.4]} 30. Nxe7 {[%clk 0:00:44.9]}
30... Kxe7 {[%clk 0:00:33.7]} 31. h5 {[%clk 0:00:31.8]} 31... Rb6 {[%clk
0:00:27]} 32. Qd4 {[%clk 0:00:27.8]} 32... Rc6 {[%clk 0:00:21.2]} 33. hxg6
{[%clk 0:00:25.9]} 33... hxg6 {[%clk 0:00:17.3]} 34. Rh7+ {[%clk 0:00:25.4]}
34... Kd8 {[%clk 0:00:15.2]} 35. Qxe5 {[%clk 0:00:19.8]} 35... Rc1+ {[%clk
0:00:07]} 36. Kxc1 {[%clk 0:00:17.4]} 36... Qc4+ {[%clk 0:00:05.9]} 37. Qc3
{[%clk 0:00:17.5]} 1-0

[Event "Early-Titled-Tuesday-Blitz-March-12-2024"]
[Site "Chess.com"]
[Date "2024.03.12"]
[Round "6"]
[White "Casper"]
[Black "omeganebulapegasus"]
[Result "0-1"]
[WhiteElo "2491"]
[BlackElo "2808"]
[TimeControl "180+1"]
[EndTime "9:05:44 PDT"]
[Termination "omeganebulapegasus won by resignation"]

1. f4 {[%clk 0:02:55.3]} 1... d5 {[%clk 0:02:53.9]} 2. Nf3 {[%clk 0:02:55.6]}
2... Nf6 {[%clk 0:02:53.7]} 3. g3 {[%clk 0:02:56]} 3... g6 {[%clk 0:02:53]} 4.
Bg2 {[%clk 0:02:56.6]} 4... Bg7 {[%clk 0:02:53.7]} 5. O-O {[%clk 0:02:57.3]}
5... O-O {[%clk 0:02:54.3]} 6. Nc3 {[%clk 0:02:57.4]} 6... c5 {[%clk 0:02:53.8]}
7. d3 {[%clk 0:02:57.3]} 7... Nc6 {[%clk 0:02:51.9]} 8. e4 {[%clk 0:02:57.5]}
8... d4 {[%clk 0:02:42.9]} 9. Ne2 {[%clk 0:02:55]} 9... e5 {[%clk 0:02:43.3]}
10. fxe5 {[%clk 0:02:47.8]} 10... Ng4 {[%clk 0:02:43]} 11. Nf4 {[%clk 0:02:40]}
11... Ngxe5 {[%clk 0:02:37.5]} 12. Nd5 {[%clk 0:02:39.4]} 12... Bg4 {[%clk
0:02:35.1]} 13. Qe1 {[%clk 0:02:15]} 13... Bxf3 {[%clk 0:02:25.2]} 14. Bxf3
{[%clk 0:02:15.9]} 14... Nxf3+ {[%clk 0:02:23.2]} 15. Rxf3 {[%clk 0:02:16.8]}
15... f5 {[%clk 0:02:23.7]} 16. Bf4 {[%clk 0:02:02.1]} 16... Qd7 {[%clk
0:02:23.5]} 17. c4 {[%clk 0:01:55.6]} 17... fxe4 {[%clk 0:02:03.6]} 18. dxe4
{[%clk 0:01:51.2]} 18... Rae8 {[%clk 0:02:03.2]} 19. Qe2 {[%clk 0:01:41.8]}
19... Ne7 {[%clk 0:01:36.9]} 20. Raf1 {[%clk 0:01:18.4]} 20... Nxd5 {[%clk
0:01:35.4]} 21. cxd5 {[%clk 0:01:19.3]} 21... Qxd5 {[%clk 0:01:34.3]} 22. exd5
{[%clk 0:01:12.9]} 22... Rxe2 {[%clk 0:01:35.2]} 23. d6 {[%clk 0:01:10.2]} 23...
Rd8 {[%clk 0:01:30.7]} 24. R1f2 {[%clk 0:01:03.9]} 24... Rxf2 {[%clk 0:01:23.3]}
25. Kxf2 {[%clk 0:01:03.5]} 25... Bf8 {[%clk 0:01:22.8]} 26. Rb3 {[%clk
0:00:41.2]} 26... b6 {[%clk 0:01:20.1]} 27. Ra3 {[%clk 0:00:41.3]} 27... Bxd6
{[%clk 0:01:05.9]} 28. Bxd6 {[%clk 0:00:35.9]} 28... Rxd6 {[%clk 0:01:05.1]} 29.
Rxa7 {[%clk 0:00:36.8]} 29... Re6 {[%clk 0:01:01.1]} 30. Rb7 {[%clk 0:00:34.8]}
30... Kf8 {[%clk 0:00:56.4]} 31. Rxh7 {[%clk 0:00:33.7]} 31... Ke8 {[%clk
0:00:56.9]} 32. a4 {[%clk 0:00:32.1]} 32... d3 {[%clk 0:00:56.2]} 33. Rh8+
{[%clk 0:00:16.3]} 33... Kd7 {[%clk 0:00:55.7]} 34. Rh7+ {[%clk 0:00:17]} 34...
Kd8 {[%clk 0:00:55.7]} 35. Rh8+ {[%clk 0:00:17.5]} 35... Kc7 {[%clk 0:00:56.2]}
36. Rh7+ {[%clk 0:00:18.2]} 36... Kc6 {[%clk 0:00:52.5]} 37. Rh8 {[%clk
0:00:18.8]} 37... c4 {[%clk 0:00:52]} 38. Rc8+ {[%clk 0:00:18.3]} 38... Kd5
{[%clk 0:00:52.1]} 39. Kf3 {[%clk 0:00:16.8]} 39... Kd4 {[%clk 0:00:45.2]} 40.
Rd8+ {[%clk 0:00:16.3]} 40... Kc5 {[%clk 0:00:45.3]} 41. h4 {[%clk 0:00:13.8]}
41... Kb4 {[%clk 0:00:45.4]} 42. g4 {[%clk 0:00:13.3]} 42... Kb3 {[%clk
0:00:45.3]} 43. Rd4 {[%clk 0:00:12]} 43... Kxb2 {[%clk 0:00:39.1]} 44. Rxc4
{[%clk 0:00:12.3]} 44... d2 {[%clk 0:00:39.8]} 45. Rd4 {[%clk 0:00:11]} 45...
Kc2 {[%clk 0:00:40.4]} 46. h5 {[%clk 0:00:08.5]} 46... gxh5 {[%clk 0:00:40.3]}
47. gxh5 {[%clk 0:00:09.4]} 47... d1=Q+ {[%clk 0:00:40.4]} 48. Rxd1 {[%clk
0:00:10.3]} 48... Kxd1 {[%clk 0:00:41.1]} 49. Kf4 {[%clk 0:00:11]} 49... Kc2
{[%clk 0:00:41]} 50. Kf5 {[%clk 0:00:11.5]} 50... Rc6 {[%clk 0:00:41.3]} 51. Kg5
{[%clk 0:00:11.5]} 51... Kb3 {[%clk 0:00:41.6]} 52. h6 {[%clk 0:00:12.4]} 52...
Rxh6 {[%clk 0:00:41.9]} 53. Kxh6 {[%clk 0:00:12.7]} 53... Kxa4 {[%clk
0:00:42.4]} 0-1

[Event "Early-Titled-Tuesday-Blitz-March-12-2024"]
[Site "Chess.com"]
[Date "2024.03.12"]
[Round "6"]
[White "GMKrikor"]
[Black "GeorgiosSouleidis"]
[Result "1-0"]
[WhiteElo "2874"]
[BlackElo "2663"]
[TimeControl "180+1"]
[EndTime "9:05:55 PDT"]
[Termination "GMKrikor won on time"]

1. Nf3 {[%clk 0:03:00.9]} 1... Nf6 {[%clk 0:03:00.1]} 2. c4 {[%clk 0:03:00.3]}
2... g6 {[%clk 0:03:00.6]} 3. Nc3 {[%clk 0:02:59.5]} 3... Bg7 {[%clk 0:03:01]}
4. e4 {[%clk 0:02:59.5]} 4... d6 {[%clk 0:03:01.8]} 5. d4 {[%clk 0:02:59.3]}
5... O-O {[%clk 0:03:02.6]} 6. h3 {[%clk 0:02:59.4]} 6... Nbd7 {[%clk
0:02:59.1]} 7. e5 {[%clk 0:02:59.5]} 7... Ne8 {[%clk 0:02:38.7]} 8. exd6 {[%clk
0:02:58.7]} 8... exd6 {[%clk 0:02:36.7]} 9. Bd3 {[%clk 0:02:58]} 9... c6 {[%clk
0:02:34]} 10. O-O {[%clk 0:02:57.7]} 10... Nef6 {[%clk 0:02:29]} 11. Re1 {[%clk
0:02:55.9]} 11... Re8 {[%clk 0:02:28.9]} 12. Bf4 {[%clk 0:02:50.6]} 12... Rxe1+
{[%clk 0:02:23.5]} 13. Qxe1 {[%clk 0:02:50.1]} 13... Nf8 {[%clk 0:02:23.5]} 14.
Qd2 {[%clk 0:02:47.2]} 14... Ne6 {[%clk 0:02:19.3]} 15. Bh6 {[%clk 0:02:34.5]}
15... d5 {[%clk 0:02:18.5]} 16. Bxg7 {[%clk 0:02:33.7]} 16... Kxg7 {[%clk
0:02:18.8]} 17. c5 {[%clk 0:02:33]} 17... Qc7 {[%clk 0:02:08.9]} 18. Re1 {[%clk
0:02:28.5]} 18... Qf4 {[%clk 0:01:49.4]} 19. Qxf4 {[%clk 0:02:21.6]} 19... Nxf4
{[%clk 0:01:50.3]} 20. Bf1 {[%clk 0:02:19.3]} 20... Ne6 {[%clk 0:01:45.4]} 21.
b4 {[%clk 0:02:15.8]} 21... Bd7 {[%clk 0:01:36]} 22. Bd3 {[%clk 0:02:08.8]}
22... b6 {[%clk 0:01:22.2]} 23. Rb1 {[%clk 0:01:49.3]} 23... Kf8 {[%clk
0:01:05.2]} 24. g3 {[%clk 0:01:47.6]} 24... Ke7 {[%clk 0:01:03.1]} 25. h4 {[%clk
0:01:44.4]} 25... h6 {[%clk 0:00:59.6]} 26. Kf1 {[%clk 0:01:43.3]} 26... Be8
{[%clk 0:00:53.1]} 27. a3 {[%clk 0:01:33.6]} 27... Kd8 {[%clk 0:00:52.8]} 28.
Re1 {[%clk 0:01:30.1]} 28... g5 {[%clk 0:00:28.5]} 29. hxg5 {[%clk 0:01:20.3]}
29... hxg5 {[%clk 0:00:29.4]} 30. Bf5 {[%clk 0:01:20.2]} 30... g4 {[%clk
0:00:22.1]} 31. Bxe6 {[%clk 0:01:19.4]} 31... gxf3 {[%clk 0:00:21.7]} 32. Bf5
{[%clk 0:01:15.6]} 32... bxc5 {[%clk 0:00:18.6]} 33. dxc5 {[%clk 0:01:13.4]}
33... a5 {[%clk 0:00:15.6]} 34. Rc1 {[%clk 0:00:40.8]} 34... axb4 {[%clk
0:00:15.6]} 35. axb4 {[%clk 0:00:41.7]} 35... Rb8 {[%clk 0:00:13.6]} 36. Rb1
{[%clk 0:00:38]} 36... Bd7 {[%clk 0:00:13.7]} 37. Bd3 {[%clk 0:00:29.8]} 37...
Kc7 {[%clk 0:00:06.9]} 38. Ke1 {[%clk 0:00:25.5]} 38... d4 {[%clk 0:00:07]} 39.
Na4 {[%clk 0:00:20.2]} 39... Nd5 {[%clk 0:00:05.1]} 40. Kd2 {[%clk 0:00:15.3]}
40... Nxb4 {[%clk 0:00:03.4]} 41. Be4 {[%clk 0:00:14.6]} 1-0